fUST/lending_fUST_20240830
["ID","MTS","AMOUNT","RATE_DAILY","PERIOD"]
[336688275,1725022249394,-230.506201,0.00038356,7]
[336688276,1725022249404,-3352.832748,0.00038356,7]
[336688277,1725022249413,-230.506201,0.00038356,7]
[336688278,1725022249424,-3352.832748,0.00038356,7]
[336688279,1725022249433,-3352.832748,0.00038356,7]
[336688280,1725022249445,-230.506201,0.00038356,7]
[336688281,1725022249455,-500.0,0.00038356,120]
[336688282,1725022249465,-3352.832748,0.00038356,7]
[336688283,1725022249479,-230.506201,0.00038356,7]
[336688284,1725022249490,-3352.832748,0.00038356,7]
[336688285,1725022249502,-230.506201,0.00038356,7]
[336688286,1725022249514,-33.39901849,0.00038356,7]
[336688287,1725022250162,-333.3986771,0.00038356,7]
[336688288,1725022250179,-1378.92675256,0.00038356,7]
[336688289,1725022250198,-597.03,0.00038356,7]
[336688290,1725022250215,-1010.07829985,0.00038356,7]
[336688291,1725022250230,-230.506201,0.00038356,7]
[336688292,1725022250245,-500.0,0.00038356,120]
[336688293,1725022250260,-3014.48586815,0.00038356,7]
[336688294,1725022250278,-338.34687985,0.00038356,7]
[336688295,1725022250293,-500.0,0.00038356,120]
[336688296,1725022250306,-123.46523338,0.00038356,7]
[336688297,1725022250324,-107.04096762,0.00038356,7]
[336688298,1725022250339,-2583.16327332,0.00038356,7]
[336688307,1725022294209,160.930908,0.0001863,2]
[336688317,1725022646254,4097.36,0.0002,2]
[336688320,1725022762105,169.819656,0.00014247,2]
[336688352,1725023249097,178.125,0.00014247,2]
[336688385,1725023440625,-160.05,0.00025,5]
[336688386,1725023440635,-830.9,0.00026044,4]
[336688387,1725023440645,-830.9,0.00027413,5]
[336688388,1725023440655,-830.9,0.00028781,5]
[336688389,1725023440665,-830.9,0.00030149,6]
[336688390,1725023440675,-500.0,0.00030353,7]
[336688391,1725023440686,-500.0,0.00031017,7]
[336688392,1725023440696,-830.9,0.00031518,7]
[336688393,1725023440707,-150.0,0.00032108,14]
[336688394,1725023440718,-150.0,0.00032108,14]
[336688395,1725023440728,-200.0,0.00032108,14]
[336688396,1725023440738,-830.9,0.00032886,15]
[336688397,1725023440748,-12812.4446752,0.00033274,2]
[336688398,1725023440758,-830.9,0.00034254,15]
[336688399,1725023440767,-830.9,0.00035623,15]
[336688400,1725023440776,-800.0,0.00036908,7]
[336688401,1725023440785,-830.9,0.00036991,15]
[336688402,1725023440795,-700.0,0.00037296,7]
[336688403,1725023440804,-652.600323,0.0003739,2]
[336688404,1725023440814,-153.0,0.00037397,2]
[336688405,1725023440824,-389.6777066,0.00037397,2]
[336688406,1725023440833,-409.3878908,0.00037534,2]
[336688407,1725023440844,-207.8512623,0.00037534,2]
[336688408,1725023440855,-207.8512623,0.00037534,2]
[336688409,1725023440865,-153.0,0.00037534,2]
[336688410,1725023440875,-652.600323,0.00037858,2]
[336688411,1725023440887,-10000.0,0.00038,40]
[336688412,1725023440897,-1513.64792131,0.00038,2]
[336688413,1725023440907,-150.112233,0.000381,9]
[336688414,1725023440916,-150.112233,0.000381,7]
[336688415,1725023440927,-500.0,0.00038199,15]
[336688416,1725023440936,-465.26032942,0.00038199,15]
[336688417,1725023440946,-500.0,0.00038199,15]
[336688418,1725023440956,-500.0,0.00038199,15]
[336688419,1725023440966,-500.0,0.00038199,15]
[336688420,1725023440975,-626.92789747,0.00038199,15]
[336688421,1725023440984,-500.0,0.00038199,15]
[336688422,1725023440994,-500.0,0.00038199,15]
[336688423,1725023441003,-500.0,0.00038199,15]
[336688424,1725023441013,-351.22473714,0.00038199,15]
[336688425,1725023441022,-500.0,0.00038199,15]
[336688426,1725023441031,-86049.37369347,0.000382,60]
[336688434,1725023443620,-806.91527618,0.000382,60]
[336688454,1725023555993,2999.25,0.0002,2]
[336688467,1725023833003,157.432371,0.00014247,2]
[336688494,1725024496612,1767.59781589,0.0002,2]
[336688536,1725024631762,-300.0,0.00024999,2]
[336688538,1725024631771,-436.02,0.00025,2]
[336688540,1725024631783,-434.4293937,0.00025,2]
[336688542,1725024631798,-24079.72959961,0.00025,2]
[336688544,1725024631807,-19875.36197453,0.0002509,2]
[336688546,1725024631817,-1793.75328454,0.00026006,2]
[336688548,1725024631826,-761.7,0.00026106,4]
[336688550,1725024631836,-500.0,0.000266,2]
[336688552,1725024631846,-241.089158,0.00026638,2]
[336688554,1725024631856,-500.0,0.00027245,2]
[336688556,1725024631865,-761.7,0.00027468,5]
[336688558,1725024631876,-339.0,0.00027499,2]
[336688560,1725024631885,-500.0,0.00027569,2]
[336688562,1725024631894,-700.0,0.00027944,2]
[336688564,1725024631904,-761.7,0.00028831,5]
[336688566,1725024631914,-174.9964493,0.00028977,2]
[336688567,1725024631924,-250.0,0.00029007,2]
[336688569,1725024631933,-250.0,0.00029087,2]
[336688571,1725024631942,-250.0,0.00029167,2]
[336688573,1725024631951,-3000.0,0.00029224,2]
[336688575,1725024631961,-250.0,0.00029246,2]
[336688576,1725024631969,-250.0,0.00029326,2]
[336688577,1725024631978,-250.0,0.00029405,2]
[336688578,1725024631991,-250.0,0.00029485,2]
[336688579,1725024632001,-250.0,0.00029564,2]
[336688580,1725024632010,-250.0,0.00029644,2]
[336688581,1725024632019,-7326.42252081,0.00029682,2]
[336688582,1725024632031,-10168.66668604,0.00029682,2]
[336688610,1725024637785,-7404.91079315,0.00029682,2]
[336688612,1725024637807,-250.0,0.00029723,2]
[336688613,1725024637817,-250.0,0.00029803,2]
[336688614,1725024637827,-250.0,0.00029883,2]
[336688615,1725024637836,-250.0,0.00029962,2]
[336688616,1725024637847,-250.0,0.00030042,2]
[336688617,1725024637856,-250.0,0.00030121,2]
[336688618,1725024637866,-761.7,0.00030194,6]
[336688619,1725024637877,-250.0,0.00030201,2]
[336688620,1725024637886,-250.0,0.0003028,2]
[336688621,1725024637896,-250.0,0.0003036,2]
[336688622,1725024637906,-250.0,0.0003044,2]
[336688623,1725024637916,-250.0,0.00030519,2]
[336688624,1725024637925,-800.0,0.0003092,7]
[336688625,1725024637935,-761.7,0.00031557,7]
[336688626,1725024637945,-157.432371,0.00031781,2]
[336688627,1725024637954,-4794.71,0.00032144,3]
[336688628,1725024637964,-351.22473714,0.00032153,2]
[336688629,1725024637974,-7641.41,0.00032154,3]
[336688630,1725024637983,-3685.09,0.00032154,3]
[336688631,1725024637996,-5753.66,0.00032154,3]
[336688632,1725024638006,-214.46081528,0.00032164,5]
[336688633,1725024638016,-150.0,0.00032164,14]
[336688634,1725024638026,-150.0,0.00032164,14]
[336688635,1725024638036,-200.0,0.00032164,14]
[336688636,1725024638045,-12217.48643588,0.00032164,7]
[336688637,1725024638055,-18059.72587501,0.00032164,30]
[336688638,1725024638064,-500.0,0.00032164,120]
[336688639,1725024638073,-947.018531,0.00032164,2]
[336688640,1725024638083,-377.57328079,0.00032164,2]
[336688641,1725024638092,-666.07600313,0.00032164,4]
[336688642,1725024638101,-761.7,0.00032919,15]
[336688643,1725024638111,-421.0176577,0.0003343,2]
[336688644,1725024638120,-761.7,0.00034282,15]
[336688645,1725024638129,-500.0,0.00035616,31]
[336688646,1725024638138,-500.0,0.00035616,31]
[336688647,1725024638148,-500.0,0.00035616,31]
[336688648,1725024638157,-500.0,0.00035616,31]
[336688649,1725024638167,-500.0,0.00035616,31]
[336688650,1725024638176,-500.0,0.00035616,31]
[336688651,1725024638185,-500.0,0.00035616,31]
[336688652,1725024638195,-502.08352112,0.00035616,31]
[336688653,1725024638204,-500.0,0.00035616,31]
[336688654,1725024638214,-761.7,0.00035645,15]
[336688655,1725024638223,-500.0,0.0003589,31]
[336688656,1725024638232,-500.0,0.0003589,31]
[336688657,1725024638244,-500.0,0.0003589,31]
[336688658,1725024638253,-328.27981248,0.0003589,31]
[336688659,1725024638262,-500.0,0.0003589,31]
[336688660,1725024638271,-500.0,0.0003589,31]
[336688661,1725024638281,-500.0,0.00036164,31]
[336688662,1725024638290,-500.0,0.00036164,31]
[336688663,1725024638299,-500.0,0.00036164,31]
[336688664,1725024638308,-500.0,0.00036164,31]
[336688665,1725024638318,-533.29,0.00036164,31]
[336688666,1725024638327,-500.0,0.00036438,31]
[336688667,1725024638336,-500.0,0.00036438,31]
[336688668,1725024638346,-500.0,0.00036438,31]
[336688669,1725024638355,-500.0,0.00036438,31]
[336688670,1725024638365,-1130.35350478,0.00036438,35]
[336688671,1725024638374,-500.0,0.00036712,31]
[336688672,1725024638384,-500.0,0.00036712,31]
[336688673,1725024638393,-500.0,0.00036712,31]
[336688674,1725024638403,-500.0,0.00036986,31]
[336688675,1725024638416,-500.0,0.00036986,31]
[336688676,1725024638426,-598.29894003,0.00036999,31]
[336688677,1725024638436,-2837.82,0.00036999,31]
[336688678,1725024638448,-500.0,0.00036999,31]
[336688679,1725024638458,-759.15,0.00036999,31]
[336688680,1725024638469,-500.0,0.00036999,31]
[336688681,1725024638478,-500.0,0.00036999,31]
[336688682,1725024638491,-500.0,0.00036999,31]
[336688683,1725024638500,-500.0,0.00036999,31]
[336688684,1725024638510,-34.56253655,0.00036999,31]
[336688685,1725024638524,-882.90111816,0.00036999,31]
[336688686,1725024638536,-662.732602,0.00036999,31]
[336688720,1725024639859,-2260.51374329,0.00036999,31]
[336688721,1725024639870,-504.08625664,0.00036999,31]
[336688722,1725024639924,-2815.87374336,0.00036999,31]
[336688724,1725024639934,-500.0,0.00036999,31]
[336688726,1725024639944,-500.0,0.00036999,31]
[336688728,1725024639954,-2069.78,0.00036999,31]
[336688730,1725024639964,-2621.08,0.00036999,31]
[336688732,1725024639974,-500.0,0.00036999,31]
[336688734,1725024639983,-500.0,0.00036999,31]
[336688736,1725024639995,-500.0,0.00036999,31]
[336688738,1725024640005,-669.99,0.00036999,31]
[336688740,1725024640015,-500.0,0.00036999,31]
[336688742,1725024640025,-500.0,0.00036999,31]
[336688744,1725024640034,-2706.48,0.00036999,31]
[336688746,1725024640045,-912.1,0.00036999,31]
[336688748,1725024640058,-500.0,0.00036999,31]
[336688750,1725024640067,-17308.13085299,0.00037,2]
[336688753,1725024640081,-761.7,0.00037008,15]
[336688754,1725024640090,-500.0,0.0003726,31]
[336688755,1725024640100,-362.46,0.0003726,31]
[336688756,1725024640110,-2837.82,0.00037273,31]
[336688757,1725024640119,-500.0,0.00037273,31]
[336688758,1725024640129,-759.15,0.00037273,31]
[336688759,1725024640139,-500.0,0.00037273,31]
[336688760,1725024640148,-500.0,0.00037273,31]
[336688761,1725024640158,-500.0,0.00037273,31]
[336688762,1725024640168,-500.0,0.00037273,31]
[336688763,1725024640178,-3840.71,0.00037273,31]
[336688764,1725024640190,-3319.96,0.00037273,31]
[336688765,1725024640199,-500.0,0.00037273,31]
[336688766,1725024640335,-500.0,0.00037273,31]
[336688767,1725024640351,-2069.78,0.00037273,31]
[336688768,1725024640361,-2621.08,0.00037273,31]
[336688769,1725024640371,-500.0,0.00037273,31]
[336688770,1725024640381,-500.0,0.00037273,31]
[336688771,1725024640391,-500.0,0.00037273,31]
[336688772,1725024640401,-500.0,0.00037273,31]
[336688773,1725024640410,-500.0,0.00037273,31]
[336688774,1725024640419,-2706.48,0.00037273,31]
[336688775,1725024640429,-912.1,0.00037273,31]
[336688776,1725024640438,-500.0,0.00037273,31]
[336688777,1725024640448,-1298.63,0.0003739,31]
[336688778,1725024640458,-2925.55,0.0003739,31]
[336688779,1725024640470,-500.0,0.0003739,31]
[336688780,1725024640478,-500.0,0.0003739,31]
[336688781,1725024640488,-500.0,0.0003739,31]
[336688782,1725024640499,-1170.81,0.0003739,31]
[336688783,1725024640509,-500.0,0.0003739,31]
[336688784,1725024640518,-500.0,0.0003739,31]
[336688785,1725024640527,-500.0,0.0003739,31]
[336688787,1725024640536,-500.0,0.0003739,31]
[336688788,1725024640546,-500.0,0.0003739,31]
[336688789,1725024640556,-500.0,0.0003739,31]
[336688790,1725024640566,-500.0,0.0003739,31]
[336688791,1725024640575,-500.0,0.0003739,31]
[336688792,1725024640585,-500.0,0.0003739,31]
[336688793,1725024640594,-500.0,0.0003739,31]
[336688794,1725024640604,-1246.49,0.0003739,31]
[336688795,1725024640614,-500.0,0.0003739,31]
[336688796,1725024640624,-500.0,0.0003739,31]
[336688797,1725024640634,-500.0,0.0003739,31]
[336688798,1725024640643,-834.57,0.0003739,31]
[336688799,1725024640653,-500.0,0.0003739,31]
[336688800,1725024640663,-500.0,0.0003739,31]
[336688801,1725024640672,-500.0,0.0003739,31]
[336688802,1725024640682,-500.0,0.0003739,31]
[336688803,1725024640691,-1007.82,0.0003739,31]
[336688804,1725024640701,-500.0,0.0003739,31]
[336688805,1725024640713,-500.0,0.0003739,31]
[336688806,1725024640723,-2202.09,0.0003739,31]
[336688807,1725024640733,-500.0,0.0003739,31]
[336688808,1725024640745,-500.0,0.0003739,31]
[336688809,1725024640754,-500.0,0.0003739,31]
[336688810,1725024640764,-500.0,0.0003739,31]
[336688811,1725024640774,-500.0,0.0003739,31]
[336688812,1725024640784,-500.0,0.0003739,31]
[336688813,1725024640794,-500.0,0.0003739,31]
[336688814,1725024640815,-500.0,0.0003739,31]
[336688815,1725024640826,-500.0,0.0003739,31]
[336688816,1725024640836,-500.0,0.0003739,31]
[336688817,1725024640846,-1407.46,0.0003739,31]
[336688818,1725024640856,-2858.73,0.0003739,31]
[336688819,1725024640866,-3908.83,0.0003739,31]
[336688820,1725024640876,-163.150081,0.0003739,2]
[336688821,1725024640886,-163.150081,0.0003739,2]
[336688822,1725024640896,-500.0,0.00037534,31]
[336688823,1725024640906,-2837.82,0.00037547,31]
[336688824,1725024640916,-500.0,0.00037547,31]
[336688825,1725024640926,-759.15,0.00037547,31]
[336688826,1725024640936,-500.0,0.00037547,31]
[336688827,1725024640946,-500.0,0.00037547,31]
[336688828,1725024640957,-500.0,0.00037547,31]
[336688829,1725024640967,-500.0,0.00037547,31]
[336688830,1725024640977,-3840.71,0.00037547,31]
[336688831,1725024640987,-3319.96,0.00037547,31]
[336688832,1725024641002,-500.0,0.00037547,31]
[336688833,1725024641013,-500.0,0.00037547,31]
[336688834,1725024641023,-2069.78,0.00037547,31]
[336688835,1725024641032,-2621.08,0.00037547,31]
[336688836,1725024641042,-500.0,0.00037547,31]
[336688837,1725024641055,-500.0,0.00037547,31]
[336688838,1725024641064,-466.56255436,0.00037547,31]
[336688839,1725024641074,-500.0,0.00037547,31]
[336688840,1725024641084,-500.0,0.00037547,31]
[336688841,1725024641094,-2706.48,0.00037547,31]
[336688842,1725024641104,-912.1,0.00037547,31]
[336688843,1725024641113,-500.0,0.00037547,31]
[336688844,1725024641123,-150.112233,0.000376,8]
[336688845,1725024641133,-537.37008237,0.00037653,15]
[336688846,1725024641144,-500.0,0.00037653,15]
[336688847,1725024641154,-500.0,0.00037653,15]
[336688848,1725024641164,-500.0,0.00037653,15]
[336688849,1725024641175,-650.0,0.00037653,15]
[336688850,1725024641184,-500.0,0.00037653,15]
[336688851,1725024641194,-500.0,0.00037653,15]
[336688852,1725024641204,-500.0,0.00037653,15]
[336688853,1725024641213,-500.0,0.00037653,15]
[336688854,1725024641224,-104881.675863,0.00037654,4]
[336688855,1725024641233,-1298.63,0.00037664,31]
[336688856,1725024641246,-2925.55,0.00037664,31]
[336688857,1725024641257,-500.0,0.00037664,31]
[336688858,1725024641266,-500.0,0.00037664,31]
[336688859,1725024641276,-500.0,0.00037664,31]
[336688860,1725024641285,-1170.81,0.00037664,31]
[336688861,1725024641295,-605.75300056,0.00037664,31]
[336688862,1725024641304,-500.0,0.00037664,31]
[336688863,1725024641313,-500.0,0.00037664,31]
[336688864,1725024641323,-500.0,0.00037664,31]
[336688865,1725024641333,-500.0,0.00037664,31]
[336688866,1725024641343,-500.0,0.00037664,31]
[336688867,1725024641353,-500.0,0.00037664,31]
[336688868,1725024641363,-500.0,0.00037664,31]
[336688869,1725024641373,-500.0,0.00037664,31]
[336688870,1725024641382,-1246.49,0.00037664,31]
[336688871,1725024641392,-500.0,0.00037664,31]
[336688872,1725024641402,-834.57,0.00037664,31]
[336688873,1725024641412,-500.0,0.00037664,31]
[336688874,1725024641422,-500.0,0.00037664,31]
[336688875,1725024641432,-500.0,0.00037664,31]
[336688876,1725024641442,-500.0,0.00037664,31]
[336688877,1725024641452,-1007.82,0.00037664,31]
[336688878,1725024641461,-500.0,0.00037664,31]
[336688879,1725024641472,-500.0,0.00037664,31]
[336688880,1725024641482,-2202.09,0.00037664,31]
[336688881,1725024641494,-500.0,0.00037664,31]
[336688882,1725024641503,-500.0,0.00037664,31]
[336688883,1725024641513,-500.0,0.00037664,31]
[336688884,1725024641525,-500.0,0.00037664,31]
[336688885,1725024641535,-500.0,0.00037664,31]
[336688886,1725024641545,-500.0,0.00037664,31]
[336688887,1725024641555,-500.0,0.00037664,31]
[336688888,1725024641564,-500.0,0.00037664,31]
[336688889,1725024641578,-500.0,0.00037664,31]
[336688890,1725024641589,-1407.46,0.00037664,31]
[336688891,1725024641599,-2858.73,0.00037664,31]
[336688892,1725024641610,-3908.83,0.00037664,31]
[336688893,1725024641620,-150.112233,0.000377,10]
[336688894,1725024641631,-150.112233,0.000378,7]
[336688895,1725024641642,-500.0,0.00037808,31]
[336688896,1725024641653,-221.61931263,0.00037809,46]
[336688897,1725024641662,-2837.82,0.00037821,31]
[336688898,1725024641672,-500.0,0.00037821,31]
[336688899,1725024641682,-759.15,0.00037821,31]
[336688900,1725024641693,-500.0,0.00037821,31]
[336688901,1725024641703,-500.0,0.00037821,31]
[336688902,1725024641714,-500.0,0.00037821,31]
[336688903,1725024641725,-500.0,0.00037821,31]
[336688904,1725024641736,-3840.71,0.00037821,31]
[336688905,1725024641747,-3319.96,0.00037821,31]
[336688906,1725024641758,-500.0,0.00037821,31]
[336688907,1725024641767,-500.0,0.00037821,31]
[336688908,1725024641778,-2069.78,0.00037821,31]
[336688909,1725024641788,-2621.08,0.00037821,31]
[336688910,1725024641798,-500.0,0.00037821,31]
[336688911,1725024641808,-500.0,0.00037821,31]
[336688912,1725024641818,-500.0,0.00037821,31]
[336688913,1725024641829,-500.0,0.00037821,31]
[336688914,1725024641839,-2706.48,0.00037821,31]
[336688915,1725024641849,-912.1,0.00037821,31]
[336688916,1725024641858,-500.0,0.00037821,31]
[336688917,1725024641868,-150.112233,0.000379,5]
[336688918,1725024641878,-1298.63,0.00037938,31]
[336688919,1725024641888,-2925.55,0.00037938,31]
[336688920,1725024641898,-500.0,0.00037938,31]
[336688921,1725024641908,-500.0,0.00037938,31]
[336688922,1725024641917,-1170.81,0.00037938,31]
[336688923,1725024641931,-500.0,0.00037938,31]
[336688924,1725024641942,-500.0,0.00037938,31]
[336688925,1725024641952,-500.0,0.00037938,31]
[336688926,1725024641962,-500.0,0.00037938,31]
[336688927,1725024641971,-465.71,0.00037938,31]
[336688928,1725024641981,-500.0,0.00037938,31]
[336688929,1725024641992,-1246.49,0.00037938,31]
[336688930,1725024642001,-834.57,0.00037938,31]
[336688931,1725024642011,-500.0,0.00037938,31]
[336688932,1725024642020,-500.0,0.00037938,31]
[336688933,1725024642035,-500.0,0.00037938,31]
[336688934,1725024642045,-500.0,0.00037938,31]
[336688935,1725024642055,-1007.82,0.00037938,31]
[336688936,1725024642065,-500.0,0.00037938,31]
[336688937,1725024642076,-500.0,0.00037938,31]
[336688938,1725024642086,-2202.09,0.00037938,31]
[336688939,1725024642096,-500.0,0.00037938,31]
[336688940,1725024642106,-500.0,0.00037938,31]
[336688941,1725024642116,-500.0,0.00037938,31]
[336688942,1725024642125,-500.0,0.00037938,31]
[336688943,1725024642135,-500.0,0.00037938,31]
[336688944,1725024642145,-500.0,0.00037938,31]
[336688945,1725024642155,-500.0,0.00037938,31]
[336688946,1725024642165,-500.0,0.00037938,31]
[336688947,1725024642175,-500.0,0.00037938,31]
[336688948,1725024642185,-1407.46,0.00037938,31]
[336688949,1725024642195,-2858.73,0.00037938,31]
[336688950,1725024642214,-3908.83,0.00037938,31]
[336688951,1725024642228,-104881.675863,0.0003797,4]
[336688952,1725024642237,-224.37455676,0.0003798,5]
[336688953,1725024642248,-669.99,0.0003798,31]
[336688954,1725024642258,-29881.59334316,0.0003798,5]
[336688960,1725024642494,-2986.40665684,0.0003798,5]
[336688961,1725024642504,-1589.74626114,0.00037995,2]
[336688962,1725024642514,-5961.74779611,0.00038,30]
[336688969,1725024642747,-406.2,0.00035616,31]
[336688970,1725024642758,-2040.57959664,0.00038,30]
[336688971,1725024642768,-150.112233,0.00038,7]
[336688972,1725024642779,-163.150081,0.00038014,2]
[336688973,1725024642791,-163.150081,0.00038014,2]
[336688974,1725024642802,-500.0,0.00038069,30]
[336688975,1725024642813,-500.0,0.00038069,31]
[336688977,1725024642822,-68.72174259,0.00038069,31]
[336688979,1725024642836,-431.27825741,0.00038069,31]
[336688980,1725024642847,-500.0,0.00038069,31]
[336688981,1725024642858,-786.07,0.00038069,31]
[336688982,1725024642867,-500.0,0.00038069,31]
[336688983,1725024642876,-500.0,0.00038069,2]
[336688984,1725024642886,-500.0,0.00038069,31]
[336688985,1725024642895,-505.66095307,0.00038069,31]
[336688986,1725024642906,-500.0,0.00038069,31]
[336688987,1725024642916,-500.0,0.00038069,31]
[336688988,1725024642926,-500.0,0.00038069,31]
[336688989,1725024642937,-500.58703518,0.00038069,31]
[336688990,1725024642947,-500.0,0.00038069,31]
[336688991,1725024642957,-500.0,0.00038069,31]
[336688992,1725024642967,-500.0,0.00038069,31]
[336688993,1725024642977,-500.0,0.00038069,31]
[336688994,1725024642987,-502.98860748,0.00038069,31]
[336688995,1725024643001,-500.0,0.00038069,31]
[336688996,1725024643012,-500.0,0.00038069,31]
[336688999,1725024643034,-500.0,0.00038079,31]
[336689001,1725024643045,-500.0,0.00038079,31]
[336689003,1725024643056,-500.0,0.00038079,31]
[336689005,1725024643067,-500.0,0.00038079,31]
[336689007,1725024643077,-500.0,0.00038079,31]
[336689008,1725024643087,-627.18,0.00038079,31]
[336689009,1725024643097,-500.0,0.00038079,31]
[336689010,1725024643109,-500.0,0.00038079,31]
[336689011,1725024643120,-500.0,0.00038079,31]
[336689012,1725024643130,-500.0,0.00038079,31]
[336689013,1725024643141,-500.0,0.00038079,31]
[336689014,1725024643151,-500.0,0.00038079,31]
[336689015,1725024643162,-500.0,0.00038079,31]
[336689016,1725024643172,-500.0,0.00038079,31]
[336689017,1725024643183,-500.0,0.00038079,31]
[336689018,1725024643193,-500.0,0.00038079,31]
[336689019,1725024643203,-500.0,0.00038079,31]
[336689020,1725024643213,-500.0,0.00038079,31]
[336689021,1725024643223,-500.0,0.00038079,31]
[336689022,1725024643233,-500.0,0.00038079,31]
[336689023,1725024643248,-500.0,0.00038079,31]
[336689024,1725024643258,-500.0,0.00038079,31]
[336689025,1725024643268,-500.0,0.00038079,31]
[336689026,1725024643278,-500.0,0.00038079,31]
[336689027,1725024643287,-500.0,0.00038079,31]
[336689028,1725024643297,-500.0,0.00038079,31]
[336689029,1725024643306,-500.0,0.00038079,31]
[336689030,1725024643317,-500.0,0.00038079,31]
[336689031,1725024643326,-500.0,0.00038079,31]
[336689032,1725024643336,-500.0,0.00038079,31]
[336689033,1725024643347,-500.0,0.00038079,31]
[336689034,1725024643356,-331.38,0.00038079,31]
[336689035,1725024643366,-500.0,0.00038079,31]
[336689036,1725024643376,-500.0,0.00038079,31]
[336689037,1725024643386,-500.0,0.00038079,31]
[336689038,1725024643395,-500.0,0.00038079,31]
[336689039,1725024643406,-500.0,0.00038079,31]
[336689040,1725024643416,-1000.0,0.0003808,30]
[336689041,1725024643426,-1000.0,0.0003808,30]
[336689042,1725024643435,-1134.71572538,0.0003808,30]
[336689043,1725024643446,-500.0,0.0003808,31]
[336689044,1725024643456,-500.0,0.0003808,31]
[336689045,1725024643466,-500.0,0.0003808,31]
[336689046,1725024643478,-500.0,0.0003808,31]
[336689047,1725024643488,-500.0,0.0003808,31]
[336689048,1725024643499,-500.0,0.0003808,31]
[336689049,1725024643508,-500.0,0.0003808,31]
[336689050,1725024643519,-500.0,0.0003808,31]
[336689051,1725024643529,-500.0,0.0003808,31]
[336689052,1725024643539,-500.0,0.0003808,31]
[336689053,1725024643548,-500.0,0.00038082,31]
[336689054,1725024643558,-500.0,0.00038088,31]
[336689055,1725024643569,-500.0,0.00038089,31]
[336689056,1725024643580,-501.56368987,0.00038089,31]
[336689057,1725024643590,-500.0,0.00038089,31]
[336689058,1725024643600,-500.0,0.00038089,31]
[336689059,1725024643610,-500.0,0.00038089,31]
[336689060,1725024643620,-500.0,0.00038089,31]
[336689061,1725024643631,-500.0,0.00038089,31]
[336689062,1725024643641,-504.05827255,0.00038089,31]
[336689063,1725024643651,-500.0,0.00038089,31]
[336689064,1725024643662,-500.0,0.00038089,31]
[336689065,1725024643672,-500.0,0.00038089,31]
[336689066,1725024643682,-500.0,0.00038089,31]
[336689067,1725024643692,-500.0,0.00038089,31]
[336689068,1725024643703,-500.0,0.00038089,31]
[336689069,1725024643713,-500.0,0.00038089,31]
[336689070,1725024643722,-500.0,0.00038089,31]
[336689071,1725024643732,-500.0,0.00038089,31]
[336689072,1725024643744,-503.29758575,0.00038089,31]
[336689073,1725024643754,-500.0,0.00038089,31]
[336689074,1725024643763,-500.0,0.00038089,31]
[336689075,1725024643773,-500.0,0.00038089,31]
[336689076,1725024643782,-500.0,0.00038089,31]
[336689077,1725024643793,-500.0,0.00038089,31]